bitfinex-derivatives/quotes_SOLF0:USTF0_20250624
["timestamp","ask_amount","ask_price","bid_price","bid_amount"]
[1750788365637,6.9271,144.29,144.26,22.68216662]
[1750788366033,7.30879773,144.36,144.26,15.75406662]
[1750788366235,6.9274,144.28,144.26,15.75406662]
[1750788366431,7.30879773,144.34,144.26,15.75406662]
[1750788366630,7.30879773,144.34,144.24,203.99406662]
[1750788366830,42.22,144.33,144.24,203.99406662]
[1750788367233,6.9281,144.27,144.24,210.92296662]
[1750788367646,42.22,144.33,144.24,49.50879773]
[1750788367831,6.9285,144.26,144.24,195.10879773]
[1750788368035,4.5586,144.32,144.24,195.10879773]
[1750788368238,6.9276,144.28,144.25,6.9284]
[1750788368434,6.9276,144.28,144.24,203.55406662]
[1750788368842,6.9276,144.28,144.25,6.9285]
[1750788369042,4.5586,144.32,144.24,195.10879773]
[1750788369236,4.5586,144.32,144.24,187.8]
[1750788369537,6.9282,144.27,144.24,194.7289]
[1750788369836,4.5586,144.32,144.24,187.8]
[1750788370042,4.5586,144.32,144.25,6.9284]
[1750788370343,6.9276,144.28,144.24,187.8]
[1750788370842,4.5586,144.32,144.24,187.8]
[1750788371045,4.5586,144.32,144.25,6.9285]
[1750788371343,6.9276,144.28,144.25,6.9285]
[1750788371643,4.5586,144.32,144.25,6.9285]
[1750788371941,6.9282,144.27,144.24,194.729]
[1750788372741,6.9282,144.27,144.25,6.9286]
[1750788373841,6.9275,144.28,144.24,196.24526889]
[1750788374036,4.5586,144.32,144.24,196.24526889]
[1750788374232,6.9277,144.28,144.26,6.43024841]
[1750788374436,6.9277,144.28,144.25,17.75699544]
[1750788374742,4.5586,144.32,144.25,17.75699544]
[1750788375040,4.5586,144.32,144.21,2.2274]
[1750788375041,4.39824703,144.27,144.23,6.43024841]
[1750788375236,4.39824703,144.27,144.2,169.06289693]
[1750788375237,4.39824703,144.27,144.22,6.43024841]
[1750788375537,6.9297,144.23,144.22,6.43024841]
[1750788376428,46.61824703,144.29,144.19,42.22]
[1750788376429,6.9302,144.22,144.21,6.43024841]
[1750788376634,4.39824703,144.27,144.2,6.43024841]
[1750788376840,4.39824703,144.27,144.21,6.43024841]
[1750788377240,4.39824703,144.27,144.2,13.36124841]
[1750788377439,4.39824703,144.27,144.21,6.43024841]
[1750788377943,4.39824703,144.27,144.21,13.36084841]
[1750788378342,6.9299,144.23,144.21,6.43024841]
[1750788378538,49.55568606,144.29,144.21,6.43024841]
[1750788378737,49.55568606,144.29,144.2,6.43024841]
[1750788378944,6.9304,144.22,144.2,6.43024841]
[1750788379243,7.33568606,144.27,144.2,6.43024841]
[1750788379446,6.9307,144.21,144.2,4.841e-05]
[1750788379742,48.45568606,144.23,144.15,8.44526889]
[1750788380249,48.45568606,144.23,144.16,6.9328]
[1750788380742,4.6339,144.24,144.19,6.9314]
[1750788381444,6.9314,144.2,144.17,55.38808606]
[1750788381745,4.6339,144.24,144.17,55.38808606]
[1750788381746,4.6339,144.24,144.17,41.12]
[1750788381947,11.96958606,144.24,144.17,41.12]
[1750788382945,11.96958606,144.24,144.16,8.57539693]
[1750788383153,11.96958606,144.24,144.16,15.50819693]
[1750788384150,11.96958606,144.24,144.16,6.9328]
[1750788384353,6.9319,144.19,144.16,6.9328]
[1750788384552,6.9319,144.19,144.15,8.57539693]
[1750788385246,6.9321,144.18,144.16,6.9328]
[1750788385444,11.96958606,144.24,144.15,8.57539693]
[1750788385649,7.33568606,144.22,144.15,8.57539693]
[1750788385944,48.45568606,144.22,144.14,8.57539693]
[1750788386454,6.9324,144.18,144.15,6.9333]
[1750788386649,48.45568606,144.22,144.14,8.57539693]
[1750788387049,6.9331,144.16,144.14,8.57539693]
[1750788387250,7.33568606,144.2,144.13,49.69539693]
[1750788387756,6.9333,144.16,144.14,6.934]
[1750788387946,48.45568606,144.22,144.13,57.03108299]
[1750788388152,41.12,144.22,144.17,6.9323]
[1750788388452,41.12,144.22,144.15,7.33568606]
[1750788388655,6.9312,144.2,144.17,6.9323]
[1750788388855,6.9312,144.2,144.15,7.33568606]
[1750788389058,41.12,144.22,144.15,7.33568606]
[1750788389252,41.12,144.22,144.15,15.91108299]
[1750788389755,2.2377,144.24,144.17,7.33568606]
[1750788389952,2.2377,144.24,144.17,57.03108299]
[1750788390154,41.12,144.25,144.18,153.25539693]
[1750788390347,6.9294,144.24,144.18,153.25539693]
[1750788390548,6.9294,144.24,144.19,7.33568606]
[1750788390754,6.9294,144.24,144.22,6.9301]
[1750788390952,6.9289,144.25,144.22,6.9301]
[1750788391154,641.9594,144.28,144.19,15.91108299]
[1750788391155,43.3594,144.28,144.21,57.05108299]
[1750788391464,41.14,144.28,144.21,57.05108299]
[1750788391758,41.14,144.31,144.23,7.33568606]
[1750788391955,6.9272,144.29,144.26,6.9283]
[1750788392158,6.9272,144.29,144.23,18.23138299]
[1750788392458,6.9272,144.29,144.23,20.56728299]
[1750788392659,41.14,144.31,144.23,20.56728299]
[1750788393161,41.14,144.31,144.26,6.928]
[1750788393162,6.9271,144.29,144.26,6.928]
[1750788393559,6.9271,144.29,144.24,144.56]
[1750788394267,6.9271,144.29,144.26,6.9278]
[1750788394559,6.9271,144.29,144.25,41.12]
[1750788394766,6.9271,144.29,144.26,6.928]
[1750788395765,6.9274,144.28,144.26,6.928]
[1750788395963,6.9274,144.28,144.25,48.0485]
[1750788396665,6.9274,144.28,144.26,6.9282]
[1750788396964,7.33568606,144.33,144.25,41.12]
[1750788397366,7.33568606,144.33,144.25,48.0487]
[1750788398168,6.9277,144.28,144.25,48.0487]
[1750788398462,6.9277,144.28,144.25,41.12]
[1750788398671,7.33568606,144.33,144.25,41.12]
[1750788399165,6.9283,144.26,144.24,144.56]
[1750788400064,6.9287,144.25,144.24,144.56]
[1750788400768,6.9287,144.25,144.22,45.52007527]
[1750788400769,4.40007527,144.26,144.21,8.57539693]
[1750788401072,4.40007527,144.26,144.2,19.9063722]
[1750788401273,6.93,144.23,144.2,19.9063722]
[1750788401468,41.12,144.3,144.21,8.57539693]
[1750788401469,4.40007527,144.28,144.21,8.57539693]
[1750788401868,4.40007527,144.28,144.21,15.50579693]
[1750788402069,4.40007527,144.28,144.21,8.57539693]
[1750788402466,6.9297,144.24,144.21,15.50579693]
[1750788403271,6.9299,144.23,144.21,8.57539693]
[1750788403469,6.9299,144.23,144.2,19.9063722]
[1750788403666,6.9302,144.22,144.2,19.9063722]
[1750788403867,6.9302,144.22,144.2,12.9754722]
[1750788404070,45.52007527,144.26,144.2,8.57539693]
[1750788404369,6.9311,144.2,144.18,8.57539693]
[1750788404967,4.40007527,144.24,144.18,8.57539693]
[1750788405173,4.40007527,144.24,144.18,15.50739693]
[1750788405576,6.9309,144.21,144.19,6.9315]
[1750788405873,4.40007527,144.24,144.19,6.9315]
[1750788406563,4.40007527,144.24,144.18,15.50729693]
[1750788406763,6.9305,144.22,144.18,8.57539693]
[1750788407165,41.12,144.25,144.19,4.40007527]
[1750788407373,6.9289,144.25,144.21,4.40007527]
[1750788407571,2.3915,144.27,144.21,4.40007527]
[1750788407770,2.3915,144.27,144.22,6.93]
[1750788407974,6.929,144.25,144.22,6.93]
[1750788408171,2.3915,144.27,144.21,6.9304]
[1750788408371,6.9295,144.24,144.21,6.9304]
[1750788408968,6.9298,144.23,144.21,6.9304]
[1750788409575,6.9294,144.24,144.21,6.9306]
[1750788409777,6.9294,144.24,144.2,53.2754722]
[1750788409964,6.9301,144.23,144.2,55.80629693]
[1750788410170,4.40060524,144.27,144.2,40.3]
[1750788410369,40.3,144.28,144.21,8.57539693]
[1750788412282,6.9295,144.24,144.22,6.9299]
[1750788412981,2.3864,144.3,144.23,143.24]
[1750788413177,4.6349,144.31,144.24,53.27600217]
[1750788413568,6.9279,144.27,144.24,60.20490217]
[1750788414475,6.9271,144.29,144.26,6.9282]
[1750788414784,44.8328,144.34,144.26,12.97600217]
[1750788415077,6.9263,144.31,144.28,6.9271]
[1750788415277,44.8328,144.34,144.26,12.97600217]
[1750788416379,6.9267,144.3,144.27,6.9276]
[1750788417181,6.926,144.31,144.28,6.9271]
[1750788417482,42.6036,144.34,144.28,4.40060524]
[1750788418984,6.9268,144.3,144.28,4.40060524]
[1750788419783,4.40060524,144.29,144.25,12.7735499]
[1750788420079,4.40060524,144.27,144.18,12.7735499]
[1750788420290,6.9311,144.21,144.18,6.9319]
[1750788420478,6.9311,144.21,144.17,17.17415514]
[1750788420684,40.3,144.26,144.19,4.40060524]
[1750788421182,44.9372,144.29,144.21,4.40060524]
[1750788421381,44.9372,144.29,144.21,44.68060524]
[1750788421579,40.28,144.29,144.23,4.40060524]
[1750788421782,44.68060524,144.32,144.23,4.40060524]
[1750788421983,6.928,144.27,144.24,6.9291]
[1750788422487,6.928,144.27,144.25,6.9286]
[1750788424090,6.9275,144.28,144.25,6.9286]
[1750788424290,44.68060524,144.32,144.24,6.929]
[1750788425083,46.89900524,144.32,144.24,6.929]
[1750788425287,6.9281,144.27,144.24,6.929]
[1750788426195,6.9284,144.26,144.24,6.929]
[1750788426693,4.40060524,144.3,144.23,11.33010524]
[1750788426993,6.9291,144.25,144.23,4.40060524]
[1750788427684,6.9286,144.26,144.23,11.33010524]
[1750788429789,6.929,144.25,144.22,156.68720524]
[1750788429989,4.40060524,144.3,144.22,154.39050524]
[1750788430194,4.40060524,144.3,144.22,147.46060524]
[1750788430391,6.9296,144.24,144.22,143.06]
[1750788430896,4.40060524,144.3,144.22,143.06]
[1750788431090,4.40060524,144.3,144.22,149.9899]
[1750788431296,4.40060524,144.3,144.22,143.06]
[1750788431692,6.9295,144.24,144.22,143.06]
[1750788431892,44.68060524,144.28,144.21,40.28]
[1750788432093,2.3955,144.27,144.21,40.28]
[1750788432293,4.40060524,144.26,144.19,12.7735499]
[1750788432493,9.03940524,144.26,144.18,53.0735499]
[1750788432896,6.9316,144.19,144.18,40.3]
[1750788433192,6.9316,144.19,144.17,4.40060524]
[1750788434894,6.9316,144.19,144.17,11.33310524]
[1750788435202,6.9321,144.18,144.16,611.4735499]
[1750788435499,44.70060524,144.24,144.17,6.9325]
[1750788435688,4.40413394,144.23,144.17,6.9325]
[1750788435893,6.9319,144.19,144.16,622.81048384]
[1750788436201,6.9319,144.19,144.16,24.11048384]
[1750788436695,6.9319,144.19,144.17,6.9325]
[1750788440706,6.9313,144.2,144.18,6.932]
[1750788441002,40.3,144.24,144.16,17.17768384]
[1750788441506,6.9314,144.2,144.16,17.17768384]
[1750788441902,6.9314,144.2,144.17,6.9324]
[1750788442201,40.3,144.24,144.17,6.9324]
[1750788442703,40.3,144.24,144.18,6.9319]
[1750788442902,44.70413394,144.24,144.18,6.9319]
[1750788443204,6.9314,144.2,144.18,6.9319]
[1750788447407,41.8555,144.27,144.19,39.46]
[1750788447602,41.8555,144.27,144.21,4.40413394]
[1750788448814,41.8555,144.27,144.21,6.9304]
[1750788449913,46.25722838,144.27,144.2,150.28324699]
[1750788450417,46.25722838,144.27,144.2,157.21414699]
[1750788450616,46.25722838,144.27,144.2,150.28324699]
[1750788452110,6.93,144.23,144.2,157.21404699]
[1750788452816,6.9302,144.22,144.2,157.21404699]
[1750788453014,62.40802838,144.31,144.21,4.40172838]
[1750788453210,2.3941,144.3,144.23,4.40172838]
[1750788453410,6.9281,144.27,144.23,4.40172838]
[1750788453721,2.3941,144.3,144.23,13.00508831]
[1750788454423,6.9277,144.28,144.25,6.9285]
[1750788454827,6.9277,144.28,144.24,8.60335993]
[1750788455626,6.9277,144.28,144.24,4.40172838]
[1750788455927,6.9277,144.28,144.25,6.9285]
[1750788457519,6.9277,144.28,144.26,6.9281]
[1750788458626,6.9277,144.28,144.24,4.40172838]
[1750788458627,6.9277,144.28,144.25,6.9285]
[1750788459530,6.9278,144.27,144.25,6.9285]
[1750788460325,2.3941,144.3,144.24,19.93398831]
[1750788460520,2.3941,144.3,144.24,11.33062838]
[1750788460722,2.3941,144.3,144.24,4.40172838]
[1750788460920,6.9277,144.28,144.24,4.40172838]
[1750788461116,2.3941,144.3,144.24,4.40172838]
[1750788461424,6.9272,144.29,144.26,6.928]
[1750788461831,6.9272,144.29,144.24,13.00508831]
[1750788462231,9.3206,144.3,144.24,13.00508831]
[1750788462434,2.3941,144.3,144.24,13.00508831]
[1750788462931,2.3823,144.34,144.28,4.40172838]
[1750788463330,6.9256,144.32,144.29,6.9266]
[1750788463927,4.40172838,144.32,144.27,8.60335993]
[1750788464230,4.40172838,144.32,144.25,13.00508831]
[1750788464231,4.6119,144.31,144.25,13.00508831]
[1750788464627,44.0719,144.31,144.25,4.40172838]
[1750788464822,6.9278,144.27,144.25,11.33022838]
[1750788465335,44.0719,144.31,144.25,11.32731552]
[1750788465524,6.9275,144.28,144.25,11.32731552]
[1750788465729,44.0719,144.31,144.25,4.39881552]
[1750788466534,6.9268,144.29,144.26,6.9281]
[1750788467235,6.9264,144.3,144.27,11.32641552]
[1750788467636,2.3823,144.34,144.27,4.39881552]
[1750788467637,41.5223,144.34,144.27,4.39881552]
[1750788468135,41.5223,144.34,144.29,4.39881552]
[1750788468330,41.5223,144.34,144.27,52.12217545]
[1750788468538,45.92037248,144.34,144.27,47.72335993]
[1750788468738,45.92037248,144.34,144.27,39.12]
[1750788469638,6.9259,144.31,144.27,43.51807248]
[1750788470038,6.9259,144.31,144.28,6.9271]
[1750788471040,6.9256,144.32,144.29,6.9268]
[1750788472246,6.9259,144.31,144.28,6.9271]
[1750788472431,6.9259,144.31,144.27,43.51807248]
[1750788472628,41.5223,144.34,144.28,6.9271]
[1750788472939,41.5223,144.34,144.27,4.39807248]
[1750788473445,39.14,144.34,144.29,4.39807248]
[1750788473736,6.9259,144.31,144.29,4.39807248]
[1750788473939,39.14,144.34,144.29,4.39807248]
[1750788474531,6.9256,144.32,144.29,11.32437248]
[1750788474736,6.9256,144.32,144.29,4.39807248]
[1750788476131,6.9256,144.32,144.3,6.9263]
[1750788476335,46.0646,144.34,144.29,4.39807248]
[1750788476635,6.9246,144.34,144.31,6.9256]
[1750788478243,6.925,144.33,144.3,6.9261]
[1750788478446,48.18147248,144.37,144.3,6.9261]
[1750788478739,6.9252,144.33,144.3,6.9261]
[1750788479745,6.9257,144.32,144.29,11.32477248]
[1750788480243,6.926,144.31,144.29,11.32477248]
[1750788480446,6.926,144.31,144.29,4.39807248]
[1750788480636,6.926,144.31,144.28,6.9271]
[1750788481341,6.9256,144.32,144.29,6.9268]
[1750788481644,6.9256,144.32,144.29,4.39807248]
[1750788481833,4.39807248,144.36,144.3,6.9261]
[1750788482042,6.9252,144.33,144.3,6.9261]
[1750788482435,43.7834,144.37,144.31,4.39807248]
[1750788482839,43.7834,144.37,144.32,6.9253]
[1750788483045,6.9243,144.35,144.32,6.9253]
[1750788483244,6.9243,144.35,144.31,4.39807248]
[1750788483542,6.9237,144.36,144.33,6.9248]
[1750788484045,6.9237,144.36,144.33,11.32267248]
[1750788484243,2.3413,144.38,144.33,11.32267248]
[1750788484442,2.3413,144.38,144.33,4.39807248]
[1750788485044,6.9232,144.37,144.34,6.9242]
[1750788485348,642.03807248,144.4,144.33,4.39807248]
[1750788485349,637.64,144.4,144.33,4.39807248]
[1750788485649,39.12,144.4,144.33,4.39807248]
[1750788486149,6.923,144.37,144.34,6.9241]
[1750788486354,39.12,144.4,144.33,4.39807248]
[1750788486647,6.9249,144.33,144.32,8.60335993]
[1750788486842,4.39807248,144.37,144.3,47.72335993]
[1750788487243,4.39807248,144.37,144.3,39.12]
[1750788487547,6.9255,144.32,144.3,46.0463]
[1750788487847,6.9255,144.32,144.3,39.12]
[1750788488251,6.9252,144.33,144.3,39.12]
[1750788488447,4.39807248,144.37,144.3,39.12]
[1750788488646,6.9252,144.33,144.3,50.44417248]
[1750788489542,6.9252,144.33,144.31,6.9258]
[1750788490044,6.9252,144.33,144.3,50.44417248]
[1750788490353,6.9252,144.33,144.3,43.51807248]
[1750788490852,4.39807248,144.39,144.3,43.51807248]
[1750788491241,6.9233,144.37,144.3,43.51807248]
[1750788491447,4.39807248,144.39,144.3,43.51807248]
[1750788491754,4.39807248,144.39,144.31,6.9256]
[1750788491947,6.9244,144.34,144.31,6.9256]
[1750788492655,6.9244,144.34,144.32,6.9253]
[1750788493254,6.9244,144.34,144.31,6.9256]
[1750788493849,6.9242,144.35,144.32,6.9253]
[1750788494050,4.39807248,144.39,144.32,6.9253]
[1750788494445,6.9243,144.35,144.32,6.9253]
[1750788494948,6.9246,144.34,144.31,6.9256]
[1750788495344,6.9246,144.34,144.3,52.12143241]
[1750788496153,6.9246,144.34,144.32,6.9254]
[1750788496453,6.9243,144.35,144.32,6.9254]
[1750788497754,6.9245,144.34,144.32,6.9254]
[1750788499151,6.9242,144.35,144.33,6.9248]
[1750788499355,43.51807248,144.4,144.33,6.9248]
[1750788499556,6.7915,144.42,144.34,43.43807248]
[1750788499745,39.04,144.46,144.38,4.39807248]
[1750788499949,50.469927,144.46,144.38,4.39807248]
[1750788500256,6.9213,144.41,144.38,4.39807248]
[1750788500855,46.1169,144.46,144.4,6.9215]
[1750788501155,50.5072535,144.46,144.38,43.4303535]
[1750788501363,6.921,144.42,144.39,6.9217]
[1750788501958,6.9213,144.41,144.39,6.9217]
[1750788502351,4.3903535,144.44,144.38,39.04]
[1750788502548,6.9219,144.4,144.38,39.04]
[1750788502750,4.3903535,144.44,144.38,45.9621]
[1750788503255,6.9213,144.41,144.38,43.4303535]
[1750788503454,6.9213,144.41,144.39,6.9218]
[1750788505651,6.9213,144.41,144.38,50.3526535]
[1750788505852,6.9208,144.42,144.38,43.4303535]
[1750788506053,50.5072535,144.46,144.41,6.9208]
[1750788506355,46.1169,144.46,144.4,4.3903535]
[1750788506558,6.9204,144.43,144.4,11.3116535]
[1750788507451,6.9206,144.42,144.4,4.3903535]
[1750788508858,6.9211,144.41,144.4,4.3903535]
[1750788509357,6.9208,144.42,144.4,4.3903535]
[1750788510153,6.9201,144.44,144.4,4.3903535]
[1750788510360,46.1169,144.46,144.4,4.3903535]
[1750788510555,4.6897,144.46,144.42,4.3903535]
[1750788511157,4.6897,144.46,144.42,6.9203]
[1750788511356,4.6897,144.46,144.38,43.6644]
[1750788511656,4.6897,144.46,144.4,4.3903535]
[1750788511857,6.9189,144.46,144.43,6.92]
[1750788512055,41.4163,144.5,144.44,4.3903535]
[1750788512449,41.4163,144.5,144.44,11.3097535]
[1750788513051,41.4163,144.5,144.44,4.3903535]
[1750788514161,6.919,144.46,144.44,11.3098535]
[1750788515162,6.9184,144.47,144.44,11.3098535]
[1750788515663,6.919,144.46,144.44,6.9195]
[1750788515863,6.919,144.46,144.43,4.3903535]
[1750788516553,6.9184,144.47,144.44,6.9194]
[1750788516954,41.4325,144.5,144.44,4.3903535]
[1750788517258,41.4325,144.5,144.42,43.4103535]
[1750788518263,6.9191,144.46,144.43,6.9199]
[1750788518965,6.9192,144.45,144.43,6.9199]
[1750788519963,6.9192,144.45,144.42,50.3306535]
[1750788521871,6.9189,144.46,144.43,6.9201]
[1750788523075,41.4325,144.5,144.43,6.9201]
[1750788523570,41.4325,144.5,144.44,6.9195]
[1750788523869,41.4325,144.5,144.42,39.02]
[1750788524063,41.4325,144.5,144.43,4.3903535]
[1750788524673,6.9178,144.48,144.45,6.9191]
[1750788524872,6.9178,144.48,144.43,4.3903535]
[1750788524873,41.4325,144.5,144.43,4.3903535]
[1750788525369,41.4325,144.5,144.46,6.9186]
[1750788525565,41.4325,144.5,144.43,4.3903535]
[1750788525971,6.918,144.48,144.45,6.9188]
[1750788526465,6.918,144.48,144.43,4.3903535]
[1750788526466,6.918,144.48,144.46,6.9186]
[1750788526768,9.1826535,144.51,144.45,4.3903535]
[1750788526769,6.9173,144.49,144.45,4.3903535]
[1750788526968,4.7923,144.51,144.45,4.3903535]
[1750788527267,39.0,144.53,144.47,4.3903535]
[1750788528160,6.8137535,144.55,144.49,6.917]
[1750788528364,6.8137535,144.55,144.47,4.3903535]
[1750788528673,2.4234,144.55,144.49,4.3903535]
[1750788528870,2.4234,144.55,144.5,39.0]
[1750788529072,2.3993,144.56,144.53,6.915]
[1750788529271,2.3993,144.56,144.45,765.91499875]
[1750788529272,38.86,144.55,144.45,608.60939875]
[1750788529467,2.2472,144.54,144.46,43.24401284]
[1750788529773,6.9164,144.51,144.48,6.9173]
[1750788529973,6.9164,144.51,144.46,43.24401284]
[1750788529974,2.2472,144.54,144.46,43.24401284]
[1750788530969,2.2472,144.54,144.48,4.38401284]
[1750788531373,11.5989,144.59,144.52,4.38401284]
[1750788531574,4.6679,144.59,144.52,4.38401284]
[1750788532478,6.9146,144.55,144.52,4.38401284]
[1750788533170,6.9153,144.53,144.51,43.24401284]
[1750788533570,4.38325363,144.56,144.48,38.86]
[1750788533770,4.38325363,144.56,144.48,43.24325363]
[1750788533970,4.38325363,144.56,144.49,6.9172]
[1750788534179,38.86,144.57,144.48,43.24325363]
[1750788534368,43.24325363,144.57,144.5,6.9165]
[1750788534571,43.24325363,144.57,144.48,4.38325363]
[1750788534771,43.24325363,144.57,144.49,38.86]
[1750788535078,43.24325363,144.57,144.49,45.7768]
[1750788535269,43.24325363,144.57,144.49,38.86]
[1750788535471,43.24325363,144.57,144.5,4.38325363]
[1750788535674,6.9156,144.53,144.5,11.29975363]
[1750788535876,43.24325363,144.57,144.5,4.38325363]
[1750788536476,38.86,144.57,144.5,4.38325363]
[1750788536777,6.9151,144.54,144.51,6.9159]
[1750788537076,38.86,144.57,144.5,4.38325363]
[1750788537276,6.9152,144.54,144.51,6.9162]
[1750788538880,6.9146,144.55,144.52,6.9157]
[1750788539081,9.05115363,144.59,144.52,6.9157]
[1750788539276,9.05115363,144.59,144.51,6.9161]
[1750788539780,6.9156,144.53,144.51,6.9161]
[1750788540278,6.9151,144.54,144.51,6.9161]
[1750788543679,6.9151,144.54,144.52,11.29905363]
[1750788543883,6.9151,144.54,144.52,4.38325363]
[1750788544774,9.05115363,144.59,144.49,38.86]
[1750788544775,4.38325363,144.57,144.49,43.24325363]
[1750788545181,6.9167,144.51,144.49,38.86]
[1750788545475,13.8261,144.58,144.49,38.86]
[1750788545682,13.8261,144.58,144.5,4.38359633]
[1750788545868,4.38359633,144.57,144.5,4.38359633]
[1750788546073,13.8261,144.58,144.5,4.38359633]
[1750788546475,6.9151,144.54,144.52,6.9156]
[1750788546684,13.9359045,144.59,144.52,6.9156]
[1750788547085,6.9145,144.55,144.53,6.9152]
[1750788547973,6.914,144.56,144.53,6.9152]
[1750788548174,4.6679,144.59,144.54,4.38359633]
[1750788548480,6.9142,144.56,144.53,38.84]
[1750788548683,6.9142,144.56,144.53,45.7548]
[1750788548987,6.9142,144.56,144.53,38.84]
[1750788549477,6.9142,144.56,144.53,45.7549]
[1750788549885,6.9142,144.56,144.53,38.84]
[1750788551382,6.9136,144.57,144.54,6.9148]
[1750788551690,6.9136,144.57,144.55,6.9141]
[1750788551890,6.9136,144.57,144.54,4.38359633]
[1750788552291,6.9136,144.57,144.54,11.29819633]
[1750788552689,6.9139,144.56,144.54,4.38359633]
[1750788554096,4.38359633,144.58,144.5,38.84]
[1750788554594,2.358,144.57,144.5,38.84]
[1750788554796,2.358,144.57,144.5,45.7565]
[1750788555589,2.358,144.57,144.49,6.917]
[1750788555891,2.358,144.57,144.49,43.22359633]
[1750788556293,2.358,144.57,144.51,4.38359633]
[1750788556592,6.9152,144.54,144.51,11.29959633]
[1750788556786,2.358,144.57,144.51,11.29959633]
[1750788557488,6.9151,144.54,144.51,11.29959633]
[1750788558388,2.358,144.57,144.51,4.38359633]
[1750788558695,6.74159633,144.57,144.49,51.79819508]
[1750788558885,6.74159633,144.57,144.5,6.9165]
[1750788559190,6.74159633,144.57,144.49,51.79819508]
[1750788559594,6.9155,144.53,144.49,51.79819508]
[1750788560287,6.9155,144.53,144.5,6.9164]
[1750788560893,6.9155,144.53,144.49,51.79819508]
[1750788561996,6.9155,144.53,144.5,6.9167]
[1750788562997,6.9161,144.52,144.49,199.25519508]
[1750788563199,6.9161,144.52,144.49,192.33819508]
[1750788564795,6.9161,144.52,144.49,199.25519508]
[1750788565496,6.9161,144.52,144.5,6.9167]
[1750788566000,6.9155,144.53,144.5,6.9167]
[1750788566699,4.38359633,144.55,144.49,38.68]
[1750788567101,4.38359633,144.55,144.48,8.57459875]
[1750788567400,4.38359633,144.53,144.47,8.57459875]
[1750788568301,4.38359633,144.53,144.46,149.21459875]
[1750788568501,4.38359633,144.53,144.47,8.57459875]
[1750788568697,6.917,144.5,144.47,15.49239875]
[1750788569299,6.9166,144.51,144.48,6.9175]
[1750788569500,6.9166,144.51,144.48,8.57459875]
[1750788570202,38.68,144.56,144.49,12.95819508]
[1750788570394,38.68,144.56,144.5,8.57459875]
[1750788571302,38.68,144.56,144.51,8.57459875]
[1750788573104,6.9155,144.53,144.51,8.57459875]
[1750788573303,38.68,144.56,144.51,8.57459875]
[1750788573805,6.9156,144.53,144.51,8.57459875]
[1750788574404,6.9158,144.52,144.51,8.57459875]
[1750788574600,38.68,144.56,144.5,8.57459875]
[1750788574601,4.38359633,144.55,144.5,8.57459875]
[1750788574808,38.68,144.56,144.49,8.57459875]
[1750788575105,6.9167,144.5,144.49,8.57459875]
[1750788577000,6.9165,144.51,144.49,8.57459875]
[1750788577305,6.9165,144.51,144.5,8.57459875]
[1750788577725,6.916,144.52,144.5,8.57459875]
[1750788578807,6.916,144.52,144.51,8.57459875]
[1750788579000,6.9156,144.53,144.51,8.57459875]
[1750788579200,43.06359633,144.56,144.51,8.57459875]
[1750788579702,6.9154,144.53,144.51,15.49059875]
[1750788579903,43.06359633,144.56,144.51,15.49059875]
[1750788581008,6.9157,144.53,144.51,15.49059875]
[1750788582103,6.9157,144.53,144.51,8.57459875]
[1750788582909,6.9157,144.53,144.51,15.49079875]
[1750788583708,6.9151,144.54,144.51,15.49079875]
[1750788584007,38.68,144.56,144.51,15.49079875]
[1750788585008,2.3772,144.58,144.52,12.95642707]
[1750788585307,5.58591807,144.61,144.54,4.38182832]
[1750788585308,4.38182832,144.61,144.54,4.38182832]
[1750788585512,6.9136,144.57,144.54,4.38182832]
[1750788586006,6.9136,144.57,144.54,19.87092707]
[1750788586205,4.38182832,144.61,144.54,51.63642707]
[1750788586409,43.1823,144.62,144.55,8.57459875]
[1750788586605,43.1823,144.62,144.57,6.9134]
[1750788587505,43.1823,144.62,144.56,19.87012707]
[1750788587897,6.9129,144.59,144.56,19.87012707]
[1750788588812,6.9122,144.6,144.57,15.48799875]